bitfinex-derivatives/quotes_ETHF0:USTF0_20250902
["timestamp","ask_amount","ask_price","bid_price","bid_amount"]
[1756777606887,2.89130987,4329.5,4328.9,0.2851]
[1756777607191,3.20240987,4329.0,4328.3,3.2078]
[1756777607393,3.20240987,4328.4,4328.3,3.2078]
[1756777607595,3.45840987,4328.4,4328.3,3.2078]
[1756777607991,3.14730987,4328.4,4328.3,3.4929]
[1756777608191,0.3111,4329.1,4328.3,3.4929]
[1756777608192,2.89130987,4328.8,4328.3,3.4929]
[1756777608394,0.256,4328.7,4328.4,0.2851]
[1756777608593,0.256,4328.6,4328.3,3.2078]
[1756777609090,0.256,4328.6,4328.4,0.2851]
[1756777609394,0.256,4328.6,4328.3,3.2078]
[1756777609593,0.3111,4328.5,4328.3,3.2078]
[1756777609994,0.3111,4329.1,4328.3,3.2078]
[1756777610190,2.89130987,4328.6,4328.4,0.2851]
[1756777610396,0.256,4328.5,4328.4,0.2851]
[1756777611097,0.3111,4328.4,4328.3,3.2078]
[1756777611293,0.256,4328.5,4328.4,0.2851]
[1756777611596,3.20240987,4329.0,4328.3,3.2078]
[1756777611792,6.09910987,4329.4,4328.4,0.2851]
[1756777611992,0.255,4329.3,4328.4,0.2851]
[1756777612195,0.255,4329.2,4328.8,3.2078]
[1756777612702,0.256,4329.4,4328.9,0.2851]
[1756777613501,0.256,4329.4,4328.8,3.2078]
[1756777613701,0.256,4329.4,4328.9,0.2851]
[1756777614102,0.256,4329.4,4328.8,3.2078]
[1756777614497,0.256,4329.4,4328.9,0.2851]
[1756777614800,0.256,4329.4,4328.8,3.2078]
[1756777615101,0.256,4329.4,4329.3,3.2078]
[1756777615404,0.256,4329.4,4329.3,3.4929]
[1756777616805,0.255,4329.5,4329.4,0.2851]
[1756777617899,0.3111,4329.4,4329.3,3.2078]
[1756777618293,0.3111,4329.4,4329.3,3.4929]
[1756777618496,6.89130987,4329.4,4328.8,3.2078]
[1756777618701,3.20240987,4328.9,4328.8,3.2078]
[1756777618906,3.45640987,4328.9,4328.8,3.2078]
[1756777619211,3.14530987,4328.9,4328.1,3.2078]
[1756777619514,0.3111,4328.7,4328.1,3.2078]
[1756777620312,6.09910987,4328.4,4327.4,3.2078]
[1756777620513,2.89130987,4327.8,4327.4,3.2078]
[1756777620810,0.5651,4327.7,4327.4,3.4929]
[1756777621317,0.3111,4327.6,4327.4,3.2078]
[1756777622014,0.3111,4327.5,4326.8,3.2078]
[1756777622210,0.3111,4327.0,4326.8,3.2078]
[1756777622409,0.254,4326.9,4326.8,3.2078]
[1756777622608,0.5651,4326.9,4326.8,3.2078]
[1756777623209,0.5651,4326.9,4326.8,3.4929]
[1756777623210,0.254,4326.9,4326.8,3.4929]
[1756777623917,3.2078,4327.6,4326.9,0.2851]
[1756777624214,0.254,4327.5,4327.0,0.3996]
[1756777624418,0.254,4328.0,4327.4,0.2805]
[1756777624916,0.254,4328.0,4327.6,0.2805]
[1756777625117,0.254,4328.0,4327.8,3.2078]
[1756777625312,0.254,4328.0,4327.9,0.2805]
[1756777625713,0.254,4328.8,4327.9,0.254]
[1756777625914,0.254,4328.8,4328.4,0.0265]
[1756777626111,0.254,4329.0,4328.4,0.0265]
[1756777628424,0.5651,4329.1,4328.4,0.0265]
[1756777629123,2.89130987,4328.9,4328.3,3.2078]
[1756777629328,0.3111,4328.8,4328.3,3.2078]
[1756777629521,3.20240987,4328.9,4328.3,3.2078]
[1756777630322,0.3111,4328.9,4328.3,3.2078]
[1756777630522,0.1167,4329.5,4328.3,3.2078]
[1756777630523,0.3111,4329.4,4328.8,3.2078]
[1756777630718,0.3111,4329.4,4329.3,3.2078]
[1756777631323,0.3005,4329.9,4329.3,3.2078]
[1756777631519,0.1153,4329.5,4329.3,3.2078]
[1756777631721,0.5545,4329.4,4329.3,3.2078]
[1756777632521,0.3005,4329.4,4329.3,3.2078]
[1756777633924,0.84658131,4329.4,4329.3,3.2078]
[1756777634624,0.253,4329.4,4329.3,3.2353]
[1756777635129,0.253,4329.4,4329.3,3.2078]
[1756777635520,0.5535,4329.4,4329.3,3.2078]
[1756777635925,2.89130987,4329.9,4329.3,7.2353]
[1756777635926,0.3005,4329.9,4329.3,7.2353]
[1756777636122,3.2078,4330.3,4329.4,0.23096999]
[1756777636321,0.54595306,4330.2,4329.5,0.2805]
[1756777636523,0.54595306,4330.1,4329.6,0.0275]
[1756777636724,0.54595306,4330.1,4328.9,2.89130987]
[1756777636725,0.5535,4330.6,4329.9,0.0275]
[1756777637026,0.54591272,4330.5,4329.9,0.2805]
[1756777637330,0.1153,4330.5,4329.8,3.2078]
[1756777637533,0.1153,4330.5,4329.8,3.4608]
[1756777638526,0.1153,4330.5,4330.3,3.2078]
[1756777638725,0.3005,4330.4,4330.3,3.2078]
[1756777639729,0.1167,4331.0,4330.3,3.2078]
[1756777639931,0.3005,4331.1,4330.3,3.4608]
[1756777640228,0.54525555,4331.0,4330.3,3.4608]
[1756777640423,0.253,4331.3,4330.8,3.2078]
[1756777640630,0.54505494,4331.2,4330.8,3.2078]
[1756777640834,0.253,4331.3,4330.8,3.2078]
[1756777641034,0.54504819,4331.2,4330.9,0.0275]
[1756777641232,0.4158,4332.0,4330.8,3.4873]
[1756777641533,0.79679649,4331.9,4331.3,3.2078]
[1756777641720,0.3005,4332.4,4331.5,0.0275]
[1756777641932,0.54475402,4332.3,4331.5,0.0275]
[1756777642124,0.3005,4332.4,4331.5,0.0275]
[1756777642428,0.1153,4332.5,4331.9,3.2078]
[1756777642823,0.5525,4332.6,4331.9,3.2078]
[1756777643035,3.39439265,4333.2,4332.4,3.2078]
[1756777643036,0.5525,4333.2,4332.4,3.2078]
[1756777643229,0.5525,4333.2,4332.4,3.4598]
[1756777643633,0.54357876,4333.1,4332.4,3.4598]
[1756777643931,0.5525,4333.2,4332.4,3.4598]
[1756777644726,0.3005,4333.2,4332.9,3.2078]
[1756777644927,0.252,4333.4,4332.9,3.2078]
[1756777645534,2.89130987,4333.8,4332.9,3.2078]
[1756777645732,0.252,4333.4,4332.9,3.2078]
[1756777645938,0.3005,4333.3,4332.9,3.2078]
[1756777646137,0.252,4333.4,4332.9,3.2078]
[1756777646936,0.3005,4333.3,4332.9,3.2078]
[1756777647237,0.252,4333.4,4332.9,3.2078]
[1756777647738,0.4158,4333.0,4332.9,3.2078]
[1756777649739,4.4158,4333.0,4332.0,3.2078]
[1756777649944,0.1153,4332.5,4332.0,3.2078]
[1756777650142,0.3005,4332.4,4332.0,3.2078]
[1756777650340,0.1153,4332.5,4332.0,3.2078]
[1756777650644,0.1153,4332.5,4330.6,2.89130987]
[1756777650645,0.3005,4331.9,4331.5,3.2078]
[1756777650842,0.1153,4332.0,4331.5,3.2078]
[1756777651047,0.3005,4331.9,4331.5,3.2078]
[1756777651542,0.251,4331.9,4331.5,3.2078]
[1756777651941,0.3005,4331.8,4331.5,3.2078]
[1756777652138,2.89130987,4331.6,4331.5,3.2078]
[1756777652342,3.19180987,4331.6,4331.5,3.2078]
[1756777652743,3.19180987,4331.6,4331.0,3.2078]
[1756777653050,0.1153,4331.5,4331.0,3.2078]
[1756777653344,0.251,4331.4,4331.0,3.2078]
[1756777654139,0.3005,4331.3,4331.0,3.2078]
[1756777654444,0.251,4331.4,4331.0,3.2078]
[1756777654644,3.19180987,4331.1,4331.0,3.2078]
[1756777655542,0.3005,4330.9,4330.2,3.2078]
[1756777655743,0.251,4330.8,4330.2,2.68730001]
[1756777655942,0.3005,4330.4,4330.2,2.68730001]
[1756777656142,0.5515,4330.3,4330.2,2.68730001]
[1756777656741,0.5515,4330.3,4329.6,3.2078]
[1756777656941,0.251,4330.3,4329.6,3.2078]
[1756777657142,0.3005,4330.2,4329.6,3.2078]
[1756777657343,0.251,4330.3,4329.6,3.2078]
[1756777657538,0.3005,4330.2,4329.6,3.2078]
[1756777657744,0.1153,4330.0,4329.6,3.2078]
[1756777657946,0.25,4329.9,4329.6,3.2078]
[1756777658343,0.3005,4329.8,4329.6,3.2078]
[1756777658842,0.3005,4329.8,4329.1,3.2078]
[1756777659146,0.3005,4330.4,4329.2,0.0275]
[1756777659343,0.3005,4330.0,4329.6,3.2353]
[1756777659537,0.25,4330.1,4329.7,0.0275]
[1756777659739,0.25,4330.6,4329.8,0.0275]
[1756777660054,0.25,4330.6,4330.5,3.2353]
[1756777660537,3.2078,4331.1,4330.5,3.2353]
[1756777660847,0.25,4331.0,4330.6,0.0275]
[1756777661045,0.25,4331.0,4330.5,3.2078]
[1756777661238,0.25,4331.0,4330.6,0.0269]
[1756777662945,0.25,4331.0,4330.5,3.2078]
[1756777663147,0.2893,4330.9,4330.2,0.25]
[1756777663549,0.2893,4330.9,4330.5,3.2078]
[1756777663749,0.3702,4331.0,4330.5,3.2078]
[1756777664148,0.2893,4330.9,4330.5,3.2078]
[1756777664350,0.2893,4330.8,4330.5,3.2078]
[1756777664751,0.2893,4330.8,4330.5,3.2347]
[1756777665647,0.3702,4331.0,4330.5,3.2078]
[1756777666547,0.2893,4331.9,4330.7,0.0269]
[1756777666752,0.2893,4331.4,4330.7,3.2078]
[1756777667249,0.1202,4330.5,4329.5,3.2078]
[1756777667448,0.1202,4330.0,4329.5,3.2078]
[1756777667657,0.2893,4329.8,4329.5,3.2078]
[1756777667850,0.253,4329.9,4329.5,3.2078]
[1756777668056,0.2893,4329.7,4329.5,3.2078]
[1756777668249,0.2893,4329.8,4329.5,3.2078]
[1756777668450,0.253,4329.9,4329.5,3.2078]
[1756777668649,0.2893,4329.6,4329.5,3.2078]
[1756777670255,0.1202,4329.5,4328.9,3.2078]
[1756777670457,0.4095,4329.5,4328.9,3.2078]
[1756777670648,0.2893,4329.5,4328.9,3.2078]
[1756777670848,0.2893,4330.0,4329.4,3.2078]
[1756777671044,0.2893,4329.8,4329.4,3.2347]
[1756777671252,0.253,4329.9,4329.4,3.2078]
[1756777671755,0.2893,4329.8,4329.4,3.2078]
[1756777672151,0.253,4329.9,4329.4,3.2078]
[1756777672756,0.2893,4329.9,4329.4,3.2078]
[1756777672961,0.5423,4329.8,4329.4,3.2078]
[1756777673149,0.4095,4329.5,4328.9,3.2078]
[1756777673351,0.1202,4329.5,4328.9,3.2078]
[1756777673657,0.2893,4329.4,4328.9,3.2078]
[1756777673862,0.1202,4329.5,4328.9,3.2078]
[1756777675059,0.1202,4330.0,4328.9,3.2078]
[1756777675060,0.2893,4329.6,4328.9,3.2078]
[1756777675473,0.252,4329.5,4328.9,3.2078]
[1756777675771,0.252,4329.5,4329.4,3.2078]
[1756777676269,0.5413,4329.6,4329.4,3.2078]
[1756777676464,0.2893,4329.5,4329.4,3.2078]
[1756777676965,0.5413,4329.6,4329.4,3.2078]
[1756777677166,0.2893,4330.2,4329.4,7.2078]
[1756777677367,0.252,4330.6,4330.0,0.0269]
[1756777677567,0.54555744,4330.5,4329.9,3.2078]
[1756777677767,0.252,4330.9,4330.0,0.0269]
[1756777677967,0.54548513,4330.8,4330.1,0.0269]
[1756777678271,0.54548513,4330.7,4330.5,3.2078]
[1756777678570,0.1202,4331.0,4330.5,3.2078]
[1756777678771,0.2893,4330.8,4330.5,3.2078]
[1756777678968,0.2893,4330.6,4330.5,3.2078]
[1756777679373,0.83557284,4330.6,4330.5,3.2078]
[1756777679574,0.54627284,4330.6,4330.5,3.2347]
[1756777679874,3.7491,4331.1,4330.5,3.2347]
[1756777680071,0.8355504,4331.0,4330.6,0.0269]
[1756777680272,0.5465675,4330.9,4330.6,0.0269]
[1756777680473,0.2893,4331.0,4330.6,0.0269]
[1756777680775,0.252,4331.1,4330.5,3.235]
[1756777680971,0.5465427,4331.0,4330.6,0.0272]
[1756777681171,0.2893,4331.0,4330.6,0.0272]
[1756777681478,0.252,4331.1,4330.6,0.0272]
[1756777681671,0.2893,4330.9,4330.5,3.2078]
[1756777681876,0.1202,4331.0,4330.5,3.2078]
[1756777682073,0.2893,4330.9,4330.5,3.235]
[1756777682973,0.2893,4330.9,4330.5,3.2078]
[1756777683172,0.252,4331.1,4330.6,0.0272]
[1756777683377,0.2893,4331.0,4330.6,0.0272]
[1756777683576,0.2893,4331.0,4330.5,3.2078]
[1756777683779,0.5413,4331.1,4330.5,3.2078]
[1756777685576,0.1202,4331.0,4330.5,3.2078]
[1756777685778,0.2893,4330.8,4330.5,3.2078]
[1756777685978,0.2893,4330.6,4330.5,3.2078]
[1756777686473,0.83628386,4330.6,4330.5,3.2078]
[1756777686676,1.08728386,4330.6,4330.5,3.2078]
[1756777687177,0.2893,4330.6,4330.5,3.2078]
[1756777687473,0.2893,4330.8,4330.5,3.235]
[1756777687873,0.2893,4330.8,4330.5,3.2078]
[1756777688367,0.251,4330.9,4330.5,3.2078]
[1756777688567,0.2893,4330.8,4330.5,3.2078]
[1756777688769,0.251,4330.9,4330.5,3.2078]
[1756777688972,0.2893,4330.7,4330.5,3.2078]
[1756777689177,0.251,4330.9,4330.5,3.2078]
[1756777690082,0.2893,4330.8,4330.5,3.2078]
[1756777690276,0.2893,4331.3,4330.6,0.48191]
[1756777690479,0.2893,4331.8,4331.1,0.0272]
[1756777690779,0.2893,4331.8,4331.5,3.2078]
[1756777691473,0.2946,4331.8,4331.5,3.2078]
[1756777692378,0.2946,4331.6,4331.5,3.2078]
[1756777693477,33.5686,4331.9,4331.5,3.2078]
[1756777693677,33.8186,4331.9,4331.5,3.2078]
[1756777693872,33.524,4331.9,4331.5,3.2078]
[1756777694181,0.251,4332.2,4331.5,3.2078]
[1756777694382,0.2946,4332.4,4332.0,3.2078]
[1756777695176,0.251,4332.3,4332.0,3.2078]
[1756777695378,0.2946,4332.1,4332.0,3.2078]
[1756777698585,0.251,4332.1,4332.0,3.2078]
[1756777698880,0.5456,4332.1,4332.0,3.2078]
[1756777699077,0.251,4332.1,4332.0,3.2078]
[1756777699280,0.5456,4332.1,4332.0,3.2078]
[1756777699480,0.251,4332.1,4332.0,3.2078]
[1756777700180,0.2946,4332.6,4332.0,3.2078]
[1756777700375,0.5456,4332.5,4332.0,3.2078]
[1756777700579,0.5446,4332.5,4332.0,3.2078]
[1756777701276,0.25,4332.9,4332.0,3.2078]
[1756777703080,0.1236,4333.0,4332.5,3.2078]
[1756777703379,0.25,4333.2,4332.5,3.2078]
[1756777703586,0.2946,4333.1,4332.5,3.2078]
[1756777703983,0.2946,4332.9,4332.5,3.2078]
[1756777704179,33.268,4333.4,4332.5,3.2078]
[1756777704381,1.09090673,4333.3,4332.5,3.2078]
[1756777704579,0.25,4333.3,4332.5,3.2078]
[1756777704979,0.2946,4333.2,4332.5,3.2078]
[1756777705174,0.5446,4333.2,4332.5,3.2078]
[1756777705379,0.2946,4333.9,4332.6,0.23079]
[1756777705579,0.19789336,4333.7,4333.5,3.2078]
[1756777705787,0.49249336,4333.6,4333.5,3.2078]
[1756777706985,0.19789336,4333.6,4333.5,7.68856]
[1756777707288,3.3314,4335.0,4333.5,7.68856]
[1756777707289,0.1236,4335.0,4333.5,7.68856]
[1756777707477,0.2946,4334.8,4334.2,3.2078]
[1756777707683,0.25,4334.7,4334.2,3.2078]
[1756777707986,0.2946,4334.4,4334.2,3.2078]
[1756777708387,0.2946,4334.4,4332.6,33.258]
[1756777708388,0.2946,4334.2,4333.4,3.2078]
[1756777708689,0.2946,4334.0,4333.4,3.2078]
[1756777708885,0.4182,4334.0,4333.4,3.2078]
[1756777709887,0.2946,4334.9,4333.9,3.2078]
[1756777710184,0.2946,4334.9,4334.0,0.249]
[1756777710385,0.2946,4334.9,4334.1,0.23071]
[1756777710585,3.2078,4335.3,4334.1,4.23071]
[1756777710787,3.2078,4335.3,4334.0,0.249]
[1756777710788,0.1236,4336.5,4335.2,3.2078]
[1756777711090,0.1236,4337.0,4336.3,3.2078]
[1756777711286,0.2946,4336.9,4336.3,3.2078]
[1756777711588,0.2946,4336.9,4335.8,3.4588]
[1756777711788,0.2946,4336.6,4335.8,3.2078]
[1756777712093,0.2946,4336.4,4335.4,0.251]
[1756777713188,0.2946,4336.4,4335.8,3.2078]
[1756777713382,0.1236,4336.5,4335.8,3.2078]
[1756777714291,0.25,4336.4,4335.8,3.2078]
[1756777714889,0.2946,4335.9,4335.8,3.2078]
[1756777716184,0.2946,4335.9,4335.1,3.2078]
[1756777716798,0.3736,4336.0,4335.1,3.4578]
[1756777716999,0.2946,4335.9,4335.1,3.4578]
[1756777717298,0.2946,4335.9,4335.1,3.2078]
[1756777717692,0.2946,4335.9,4335.2,0.25]
[1756777717994,0.2946,4335.9,4335.1,3.2078]
[1756777718194,0.1236,4336.0,4335.1,3.2078]
[1756777718394,0.25,4335.9,4335.1,3.2078]
[1756777718592,0.1236,4335.5,4335.1,3.2078]
[1756777718788,0.1236,4335.5,4334.7,3.2078]
[1756777718995,0.2946,4335.4,4334.7,3.2078]
[1756777719396,0.1236,4335.5,4334.7,3.2078]
[1756777719794,0.2946,4335.4,4334.7,3.2078]
[1756777720994,0.3027,4335.4,4334.7,3.2078]
[1756777721192,0.1236,4335.5,4334.7,3.2078]
[1756777721697,0.3027,4335.4,4334.7,3.2078]
[1756777722196,3.2078,4336.3,4334.8,0.25]
[1756777722394,3.2078,4336.3,4335.2,3.2078]
[1756777722395,0.84667351,4335.9,4335.2,3.2078]
[1756777722596,0.54393812,4335.8,4335.2,3.2078]
[1756777722795,0.3027,4335.9,4335.2,3.2078]
[1756777723794,0.3027,4335.7,4335.2,3.2078]
[1756777723994,0.3027,4335.9,4335.2,3.2078]
[1756777724190,3.0092107,4336.0,4335.2,3.2078]
[1756777724191,0.3027,4335.6,4335.2,3.2078]
[1756777724494,0.3027,4335.9,4335.2,3.2078]
[1756777724795,0.54415316,4335.8,4335.2,3.2078]
[1756777724993,0.3027,4335.5,4335.2,3.2078]
[1756777725194,0.3027,4335.9,4335.2,3.2078]
[1756777725395,0.3027,4335.6,4335.2,3.2078]
[1756777725602,0.3027,4335.5,4335.2,3.2078]
[1756777726094,0.1175,4335.5,4335.2,3.2078]
[1756777726294,0.3027,4335.4,4334.7,3.2078]
[1756777726495,0.3027,4335.2,4334.7,3.2078]
[1756777726697,0.249,4335.4,4334.7,3.2078]
[1756777726904,0.3027,4334.9,4334.7,3.2078]
[1756777727397,0.84729642,4334.8,4334.7,3.2078]
[1756777727591,1.09729642,4334.8,4334.7,3.2078]
[1756777729097,0.84729642,4334.8,4334.7,3.2078]
[1756777729303,0.54459642,4334.8,4334.7,3.2078]
[1756777730302,0.84729642,4334.8,4334.7,3.2078]
[1756777731704,0.54459642,4334.8,4334.7,3.2078]
[1756777733801,0.3027,4335.2,4334.7,3.2078]
[1756777734102,0.84964166,4335.1,4334.7,3.2078]
[1756777734302,0.54694166,4335.0,4334.7,3.2078]
[1756777734501,0.84964166,4335.0,4334.7,3.2078]
[1756777734800,0.8500454,4334.9,4334.7,3.2078]
[1756777735105,0.3027,4334.9,4334.7,3.4568]
[1756777735404,0.54780902,4334.8,4334.7,3.4568]
[1756777736105,0.3027,4335.7,4334.7,7.4568]
[1756777736400,0.54778043,4335.6,4334.7,3.4568]
[1756777736603,0.54778043,4335.5,4334.7,3.4568]
[1756777736806,0.54778043,4335.4,4334.7,3.4568]
[1756777737005,0.54778043,4335.3,4334.7,3.4568]
[1756777737198,1.55338824,4335.7,4334.7,3.4568]
[1756777737199,0.54778043,4335.2,4334.7,3.4568]
[1756777737394,0.3027,4335.0,4334.7,3.2078]
[1756777737600,0.85048043,4334.9,4334.8,0.249]
[1756777738307,0.3027,4334.8,4334.7,3.2078]
[1756777738500,0.85048043,4334.8,4334.7,3.2078]
[1756777740200,4.85048043,4334.8,4334.7,3.2078]
[1756777740405,0.3027,4334.4,4334.1,3.2078]
[1756777740608,0.3027,4334.2,4334.1,3.2078]
[1756777740908,0.54778043,4334.2,4334.1,3.2078]
[1756777741107,0.54778043,4334.7,4334.1,3.2078]
[1756777741499,0.3027,4334.5,4334.1,3.2078]
[1756777741702,0.3027,4334.3,4334.1,3.2078]
[1756777741904,0.85048043,4334.2,4334.1,3.2078]
[1756777743612,0.54778043,4334.2,4334.1,3.2078]
[1756777744010,0.3027,4334.9,4334.1,3.2078]
[1756777744211,0.85141085,4334.8,4334.6,3.2078]
[1756777744414,0.54871085,4334.7,4334.6,3.2078]
[1756777744710,0.85141085,4334.7,4334.6,3.2078]
[1756777745299,0.54871085,4334.7,4334.6,3.2078]
[1756777745511,0.249,4335.5,4334.6,7.6875]
[1756777745709,0.54884216,4335.4,4335.3,3.2078]
[1756777747617,0.3027,4335.9,4335.3,3.2078]
[1756777747821,0.54878598,4335.8,4335.4,0.249]
[1756777748122,0.54878598,4335.7,4335.4,0.249]
[1756777748323,0.54878598,4335.6,4335.4,0.249]
[1756777748526,0.5517,4336.0,4335.4,0.249]
[1756777748727,0.3027,4335.8,4335.4,0.249]
[1756777749019,0.3027,4336.3,4335.4,0.47964]
[1756777749219,0.85137964,4336.2,4336.0,3.2078]
[1756777749411,0.1175,4336.5,4336.0,3.4568]
[1756777749412,0.3027,4336.5,4336.0,3.4568]
[1756777749616,0.54842776,4336.4,4336.0,3.4568]
[1756777749812,3.5105,4336.9,4336.0,3.4568]
[1756777750016,0.3027,4336.7,4336.1,0.249]
[1756777750213,0.3027,4336.8,4336.0,3.2078]
[1756777750414,0.3027,4336.4,4336.0,3.2078]
[1756777750618,3.2521107,4336.5,4336.0,3.2078]
[1756777750916,0.3027,4336.3,4336.0,3.2078]
[1756777751118,0.3136,4336.1,4336.0,3.2078]
[1756777751726,0.3136,4335.9,4335.2,0.249]
[1756777751920,0.3136,4335.9,4335.1,3.2078]
[1756777751921,0.3136,4335.7,4335.1,3.4568]
[1756777752320,0.249,4335.9,4335.1,3.4568]
[1756777752523,0.3136,4335.7,4335.1,3.4568]
[1756777752721,0.249,4335.9,4335.1,3.2078]
[1756777752927,0.3136,4335.7,4335.1,3.2078]
[1756777753122,0.3136,4335.8,4335.1,3.2078]
[1756777753324,0.249,4336.2,4335.2,0.249]
[1756777753529,0.3136,4336.0,4335.2,0.249]
[1756777753820,0.3136,4336.0,4335.1,3.2078]
[1756777753821,0.3136,4335.8,4335.1,3.2078]
[1756777754027,0.3136,4335.6,4335.1,3.2078]
[1756777754223,0.1176,4335.5,4335.1,3.2078]
[1756777754416,0.3136,4335.4,4335.1,3.2078]
[1756777754619,0.1176,4335.5,4335.1,3.2078]
[1756777754821,0.3136,4335.4,4335.1,3.2078]
[1756777755025,3.0032107,4336.0,4335.1,3.2078]
[1756777755026,0.249,4335.8,4335.1,3.2078]
[1756777755225,0.5465314,4335.7,4335.6,3.2078]
[1756777755525,3.0032107,4337.5,4335.6,3.68745]
[1756777755726,0.1176,4337.0,4336.5,3.2078]
[1756777755929,0.54636502,4336.9,4336.5,3.2078]
[1756777756125,0.3136,4336.7,4336.5,3.2078]
[1756777756330,0.54636502,4336.8,4334.2,0.41527]
[1756777756331,0.1176,4336.5,4335.5,3.2078]
[1756777756528,0.3136,4336.3,4335.5,3.2078]
[1756777756931,0.25,4336.4,4335.5,3.2078]
[1756777757223,0.3136,4336.1,4335.5,3.2078]
[1756777757424,0.1176,4336.0,4335.5,3.2078]
[1756777757621,0.3136,4335.9,4335.5,3.2078]
[1756777758129,0.1176,4336.0,4335.5,3.2078]
[1756777758324,0.3136,4335.9,4335.5,3.2078]
[1756777758826,0.3136,4336.4,4335.6,0.47964]
[1756777759025,0.3136,4336.8,4336.1,3.2078]
[1756777759232,0.3136,4337.0,4336.7,3.2078]
[1756777759522,0.3136,4337.3,4336.7,3.2078]
[1756777759726,0.1176,4337.0,4336.7,3.2078]
[1756777760320,0.3136,4337.7,4336.7,3.2078]
[1756777760525,0.4312,4337.5,4336.7,3.2078]
[1756777760724,0.54569344,4337.4,4336.7,3.2078]
[1756777761526,0.54569344,4337.4,4336.8,0.23057]
[1756777761727,0.3136,4337.5,4336.7,3.43837]
[1756777762226,0.1176,4337.5,4336.7,3.2078]
[1756777762430,0.3136,4337.4,4336.7,3.4578]
[1756777762731,0.1176,4337.5,4336.7,3.2078]
[1756777762936,0.1176,4337.0,4336.7,3.2078]
[1756777763132,0.3136,4337.3,4336.7,3.2078]
[1756777763325,0.4312,4338.0,4337.2,3.2078]
[1756777763629,0.54525522,4337.9,4337.2,3.2078]
[1756777763832,0.4312,4338.0,4337.2,3.2078]
[1756777763833,0.3136,4337.7,4337.2,3.2078]
[1756777764025,0.3136,4337.5,4337.2,3.2078]
[1756777764424,0.1176,4338.0,4337.2,3.2078]
[1756777764624,0.85858199,4337.9,4337.2,3.2078]
[1756777764829,3.2078,4338.9,4337.7,3.2078]
[1756777765029,0.3136,4338.3,4337.7,3.2078]
[1756777765230,0.3136,4338.8,4338.2,3.2078]
[1756777765630,3.2078,4338.9,4338.2,3.2078]
[1756777765828,0.3136,4338.9,4338.2,3.2078]
[1756777766228,0.3136,4339.6,4338.3,0.23049]
[1756777766435,0.3136,4339.6,4338.8,3.2078]
[1756777766628,0.3136,4339.6,4338.8,3.4578]
[1756777767330,0.3136,4339.4,4338.8,3.2078]
[1756777767930,0.3136,4339.2,4338.3,0.25]
[1756777768136,0.25,4339.3,4338.2,3.2078]
[1756777768334,0.3136,4339.8,4338.7,3.2078]
[1756777768527,0.1176,4340.0,4339.2,3.2078]
[1756777768727,0.1176,4339.5,4339.2,3.2078]
[1756777768932,0.3136,4339.4,4339.2,3.2078]
[1756777769129,0.1176,4339.5,4339.2,3.2078]
[1756777769331,0.3136,4339.3,4338.2,0.251]
[1756777769636,3.2078,4339.4,4338.0,3.4588]
[1756777769933,2.8856107,4339.1,4338.0,3.2078]
[1756777770132,0.3136,4338.9,4338.0,3.2078]
[1756777770437,0.5646,4338.8,4338.0,3.2078]
[1756777770836,0.3136,4338.4,4338.0,3.2078]
[1756777771436,0.3136,4338.6,4338.0,3.2078]
[1756777771639,0.3136,4338.4,4338.0,3.2078]
[1756777771937,0.1176,4338.5,4338.0,3.2078]
[1756777772133,0.3136,4338.4,4338.0,3.2078]
[1756777772741,0.1176,4338.5,4338.0,3.2078]
[1756777773030,0.3136,4338.4,4338.0,3.2078]
[1756777773432,0.1176,4338.5,4338.0,3.2078]
[1756777773834,0.3136,4338.4,4338.0,3.2078]
[1756777774141,0.1176,4338.5,4338.0,3.2078]
[1756777774332,0.3136,4338.4,4337.5,3.2078]
[1756777774538,3.75133206,4338.4,4337.5,3.2078]
[1756777774834,3.2078,4338.4,4337.5,3.2078]
[1756777775030,0.3136,4338.3,4337.5,3.2078]
[1756777775230,3.2078,4338.4,4337.6,0.48152]
[1756777775735,0.1176,4339.0,4338.0,3.2078]
[1756777775938,0.3136,4339.3,4338.6,3.2078]
[1756777776632,0.3136,4339.3,4338.6,3.4588]
[1756777777241,0.1,4340.2,4339.2,3.2078]
[1756777777438,0.1,4340.2,4339.8,3.2078]
[1756777778241,0.3136,4340.1,4339.8,3.2078]
[1756777778545,0.1,4340.2,4339.8,3.2078]
[1756777779243,0.1,4340.2,4339.9,4.252]
[1756777779545,0.1,4340.2,4340.0,0.252]
[1756777780042,0.1,4340.2,4339.8,3.2078]
[1756777780243,0.1,4340.2,4339.9,0.252]
[1756777780641,0.1,4340.2,4340.0,4.23041]
[1756777780847,0.1,4340.2,4340.0,4.0]
[1756777781345,0.1,4340.2,4340.1,0.252]
[1756777781843,0.1,4340.2,4339.8,3.2078]
[1756777782042,0.1,4340.2,4339.9,0.252]
[1756777782242,0.1,4340.2,4339.8,3.2078]
[1756777782543,0.1,4340.2,4339.9,0.252]
[1756777782544,0.2852,4340.1,4339.9,0.252]
[1756777782746,0.2852,4340.1,4339.9,41.052]
[1756777782945,0.2852,4340.1,4339.9,40.8]
[1756777783146,0.2852,4340.1,4339.9,41.052]
[1756777783340,0.1,4340.2,4339.8,3.4598]
[1756777783536,0.2852,4340.1,4339.8,3.4598]
[1756777783743,0.1,4340.2,4339.8,3.2078]